Cogmind - Beta 13 @@@ ROGUE MODE // 2024.04.05 @ 22:32:36 Player: SnowyImp Result: Destroyed by G-47 Trooper with Particle Gun Performance ------------- Evolutions (2) 1000 Regions Visited (3) 600 Robots Destroyed (58) 290 Value Destroyed (1793) 1793 Prototype IDs (2) 40 Alien Tech Used (0) 0 Bonus (28) 28 TOTAL SCORE: 3751 Bonus ------- High Alert Combat Kills 28 Cogmind --------- Core Integrity 0/550 Matter 266/300 Energy 100/100 System Corruption 5% Temperature Cool (18) Movement Core (450) Ox8 Location -8/Materials Parts ------- > --- POWER (1) -------- (None) > --- PROPULSION (4) --- (None) > --- UTILITY (4) ------ Cooling System Large Storage Unit Advanced Targeting Computer > --- WEAPON (2) ------- High-powered Shotgun > --- INVENTORY (15) --- Improved Ion Engine Improved Signal Interpreter ECM Suite Hacking Suite Grenade Launcher Heavy Flail Peak State ------------ > --- POWER ------------ Reinforced Ion Engine > --- PROPULSION ------- Aluminum Leg Aluminum Leg Aluminum Leg Compact Wheel > --- UTILITY ---------- Improved Heat Sink Large Storage Unit High-capacity Matter Pod Hardened Light Armor Plating > --- WEAPON ----------- Shotgun Shotgun > --- INVENTORY -------- Improved Ion Engine Improved Ion Engine Light Treads Light Treads Cooling System Improved Signal Interpreter Advanced Targeting Computer ECM Suite Light Armor Plating Hacking Suite Grenade Launcher Heavy Flail [Rating: 19] Favorites ----------- Power Ion Engine Engine Ion Engine Propulsion Aluminum Leg Treads Light Treads Leg Aluminum Leg Wheel Compact Wheel Utility Large Storage Unit Device Sensor Array Storage Large Storage Unit Processor Terrain Scan Processor Protection Hardened Light Armor Plating Weapon Shotgun Energy Gun Small Laser Ballistic Gun Shotgun Impact Weapon Heavy Flail Build | -11 -10 -9 -8 ------- Run | Yrd Mat Mat Mat Slots Evolved 4 | . . 2 2 Power . | . . . . Propulsion 2 | . . 2 . Utility 2 | . . . 2 Weapon . | . . . . Parts Attached 51 | 6 6 16 23 Power 6 | 1 1 3 1 Engine 6 | 1 1 3 1 Core . | . . . . Reactor . | . . . . Propulsion 19 | 2 . 10 7 Treads 6 | 2 . 2 2 Leg 8 | . . 6 2 Wheel 5 | . . 2 3 Hover . | . . . . Flight . | . . . . Utility 14 | 1 2 1 10 Device 7 | . 1 1 5 Storage 3 | 1 1 . 1 Processor 2 | . . . 2 Hackware . | . . . . Protection 2 | . . . 2 Artifact . | . . . . Weapon 12 | 2 3 2 5 Energy Gun 1 | 1 . . . Energy Cannon . | . . . . Ballistic Gun 9 | 1 3 2 3 Ballistic Cannon . | . . . . Launcher . | . . . . Special Weapon . | . . . . Impact Weapon 2 | . . . 2 Slashing Weapon . | . . . . Piercing Weapon . | . . . . Special Melee Weapon . | . . . . Unidentified Prototypes . | . . . . Parts Lost 26 | . . 5 21 Power 3 | . . 1 2 Propulsion 11 | . . 2 9 Utility 6 | . . . 6 Weapon 6 | . . 2 4 Highest Loss Streak 10 | . . 2 10 To Critical Strikes 1 | . . . 1 Average Slot Usage (%) 96 | . 99 97 90 Engine 11 | . 14 11 8 Treads 17 | . 28 12 3 Leg 14 | . . 27 22 Wheel 1 | . . 1 4 Device 11 | . 13 10 11 Storage 13 | . 14 11 17 Protection 1 | . . . 4 Ballistic Gun 22 | . 26 21 13 Naked Turns . | . . . . Heaviest Build 46 | 13 32 37 46 Greatest Support 80 | 40 40 80 40 Greatest Overweight (x) 2 | 1 . 1 2 Average Overweight (x) . | . . . 1 Largest Inventory Capacity 15 | 8 15 15 15 Average Capacity 14 | 6 14 15 15 Most Carried 15 | 5 15 15 14 Average Carried 12 | 2 12 13 10 Final Capacity 15 | 8 15 15 15 Final Carried 15 | 5 15 15 6 Class Distribution -------------------- 58% | Mutant 41% | Scavenger-Mutant Dominant Class ---------------- Mutant | -10/Materials Scavenger-Mutant | -9/Materials Scavenger-Mutant | -8/Materials Resources | -11 -10 -9 -8 ----------- Run | Yrd Mat Mat Mat Matter Collected 1646 | 259 475 561 351 Remotely 176 | . . . 176 Salvage Created 2016 | . 514 862 640 Parts 98 | . 28 46 24 Haulers Intercepted 1 | . . 1 . Recyclers Shooed 2 | . . 2 . Parts Field Recycled . | . . . . Retrieved Matter . | . . . . Parts Self-Destructed . | . . . . Prevented . | . . . . Kills | -11 -10 -9 -8 ------- Run | Yrd Mat Mat Mat Combat Hostiles Destroyed 56 | . 16 23 17 Melee 3 | . . . 3 Guns 51 | . 16 23 12 Classes Destroyed 8 | . 2 5 1 Hauler 1 | . . 1 . Recycler 1 | . . 1 . Swarmer 15 | . 6 6 3 Grunt 30 | . 10 12 8 Brawler 3 | . . 1 2 Duelist 2 | . . 1 1 Sentry 5 | . . 3 2 Hunter 1 | . . . 1 Best Kill Streak 8 | . 4 8 3 Combat Bots Only 8 | . 4 8 3 Max Kills in Single Turn 2 | . 2 2 1 Gunslinging 1 | . 1 1 . Exploded . | . . . . Melee 1 | . . . 1 Uniques/NPCs Destroyed . | . . . . Combat | -11 -10 -9 -8 -------- Run | Yrd Mat Mat Mat Hostile Shots Fired 409 | . 75 108 226 Missed 104 | . 20 33 51 Damage Taken 4194 | . 545 983 2666 Core 759 | . 51 155 553 Absorbed by Shields . | . . . . Regen/Repaired (Parts) 18 | . . 18 . Core Remaining (%) 80 | 100 79 61 . Volleys Fired 131 | . 33 66 32 Largest 2 | . 2 2 2 Hottest 50 | . 46 46 50 Shots Fired 249 | . 66 123 60 Gun 249 | . 66 123 60 Cannon . | . . . . Launcher . | . . . . Special . | . . . . Kinetic 249 | . 66 123 60 Thermal . | . . . . Explosive . | . . . . Electromagnetic . | . . . . Robot Hit Streak 12 | . 9 12 11 Robot Miss Streak 6 | . 2 6 3 Penetration Max . | . . . . Secondary Targets 9 | . 3 5 1 Max Gunslinging Chain 1 | . 1 1 1 Shots Hit Robots 199 | . 49 90 60 Core Hits 109 | . 26 48 35 Critical Kills 2 | . . . 2 Critical Parts Destroyed 4 | . 1 1 2 Critical Strikes 6 | . 1 1 4 Destroy 3 | . 1 1 1 Smash 3 | . . . 3 Melee Attacks 19 | . . . 19 Impact 19 | . . . 19 Slashing . | . . . . Piercing . | . . . . Sneak Attacks . | . . . . Combat Hostiles . | . . . . Follow-up Attacks . | . . . . Damage Inflicted 3347 | . 706 1420 1221 Guns 2903 | . 706 1420 777 Cannons . | . . . . Explosions . | . . . . Melee 444 | . . . 444 Ramming . | . . . . Kinetic 2903 | . 706 1420 777 Thermal . | . . . . Explosive . | . . . . Electromagnetic . | . . . . Impact 444 | . . . 444 Slashing . | . . . . Piercing . | . . . . Highest Corruption 5 | . . 5 5 Average Corruption 3 | . . 5 1 Corruption Purged . | . . . . Corruption Blocked . | . . . . Effects 21 | . . 15 6 Message Errors 4 | . . 3 1 Matter Fused 2 | . . 2 . Heat Flow Errors 1 | . . 1 . Energy Discharges 2 | . . 2 . Parts Fused 2 | . . . 2 Data Loss (minor) 7 | . . 5 2 Misfires 1 | . . . 1 Weapon Failures 2 | . . 2 . Overload Shots . | . . . . Overflow Damage 110 | . . . 110 Projectiles . | . . . . Explosions . | . . . . Melee 110 | . . . 110 Knockbacks 1 | . . . 1 Impact 1 | . . . 1 Kinetic . | . . . . Secondary . | . . . . Self-Inflicted Damage . | . . . . Shots . | . . . . Rammed 1 | . . 1 . Targets Rammed 1 | . . 1 . Kicked . | . . . . Crushed . | . . . . Highest Temperature 223 | . 7 223 30 Average Temperature 28 | . 2 57 11 Received Heat Transfer 1560 | . 204 267 1089 Siege Activations . | . . . . Robots Corrupted . | . . . . Combat Hostiles . | . . . . Parts Fried 4 | . . . 4 Impact Corruptions 4 | . . . 4 Robots Melted . | . . . . Combat Hostiles . | . . . . Parts Melted . | . . . . Heat Transferred . | . . . . Parts Sabotaged . | . . . . Parts Stolen . | . . . . Parts Stripped . | . . . . Power Chain Reactions . | . . . . Alert | -11 -10 -9 -8 ------- Run | Yrd Mat Mat Mat Peak Influence 429 | . 354 429 412 Initial 87 | . . 46 87 Average 192 | . 150 231 241 Maximum Alert Level 2 | . 1 2 2 Low Security (%) 45 | 100 65 30 22 Level 1 51 | . 34 65 70 Level 2 3 | . . 4 6 Level 3 . | . . . . Level 4 . | . . . . Level 5 . | . . . . High Security . | . . . . Max Security . | . . . . Squads Dispatched 11 | . 4 2 5 Investigation 4 | . 1 . 3 Extermination . | . . . . Reinforcement 5 | . 3 2 . Assault . | . . . . Garrison 2 | . . . 2 Intercept . | . . . . Searches Triggered . | . . . . Construction Impeded . | . . . . Haulers Reinforced . | . . . . Active Scanning Responses . | . . . . Cargo Convoy Interrupts . | . . . . Stealth | -11 -10 -9 -8 --------- Run | Yrd Mat Mat Mat Distress Signals 8 | . 2 2 4 Communications Jammed . | . . . . Distress Signals . | . . . . Times Spotted 98 | . 26 37 35 Peak Tracking Total 10 | . 6 8 10 Tactical Retreats 6 | . 3 . 3 Traps | -11 -10 -9 -8 ------- Run | Yrd Mat Mat Mat Traps Triggered 2 | . 1 1 . Indirectly . | . . . . Trap Hack Attempts . | . . . . Triggered . | . . . . Disarmed . | . . . . Reprogrammed 3 | . 3 . . Reused . | . . . . Traps Extracted . | . . . . Installed . | . . . . Triggered . | . . . . Machines | -11 -10 -9 -8 ---------- Run | Yrd Mat Mat Mat Machines Disabled . | . . . . Max in Single Turn . | . . . . Machines Repaired . | . . . . Machines Dismantled . | . . . . Machines Sabotaged . | . . . . Overloaded Fab Kills . | . . . . Hacking | -11 -10 -9 -8 --------- Run | Yrd Mat Mat Mat Machines Accessed 15 | . 7 5 3 Terminals 11 | . 5 4 2 Fabricators . | . . . . Repair Stations 1 | . . 1 . Recycling Units 2 | . 2 . . Scanalyzers . | . . . . Garrison Access 1 | . . . 1 Total Hacks 43 | . 22 14 7 Successful 13 | . 7 6 . Failed 30 | . 15 8 7 Catastrophic 9 | . 2 5 2 Database Lockouts . | . . . . Manual 18 | . 7 6 5 Terminals 35 | . 18 12 5 Fabricators . | . . . . Repair Stations 2 | . . 2 . Recycling Units 4 | . 4 . . Scanalyzers . | . . . . Garrison Access 2 | . . . 2 Terminal Hacks 10 | . 6 4 . Prototype ID Bank 1 | . 1 . . Level Access Points 3 | . 2 1 . Alert Level 1 | . . 1 . Unreport Threat 1 | . . 1 . Reprogram Traps 1 | . 1 . . Registered Components 1 | . 1 . . Registered Prototypes 1 | . . 1 . Zone Layout 1 | . 1 . . Fabricator Hacks . | . . . . Repair Station Hacks 2 | . . 2 . Scan Component 1 | . . 1 . Repair 1 | . . 1 . Recycling Unit Hacks 1 | . 1 . . Retrieve Components 1 | . 1 . . Scanalyzer . | . . . . Garrison Access Hacks . | . . . . Unauthorized Hacks . | . . . . Terminals . | . . . . Fabricators . | . . . . Repair Stations . | . . . . Recycling Units . | . . . . Scanalyzers . | . . . . Garrison Access . | . . . . Data Cores Recovered . | . . . . Used . | . . . . Hacking Detections 14 | . 6 5 3 Full Trace Events 6 | . 1 2 3 Feedback Events 1 | . . . 1 Corruption 1 | . . . 1 Feedback Blocked . | . . . . Robot Schematics Acquired . | . . . . Robots Built . | . . . . Authchips . | . . . . Time . | . . . . Total Robot Build Rating . | . . . . Part Schematics Acquired . | . . . . Parts Built . | . . . . Authchips . | . . . . Time . | . . . . Total Part Build Rating . | . . . . Parts Repaired 1 | . . 1 . Time 26 | . . 26 . Parts Recycled . | . . . . Recycled Matter . | . . . . Retrieved Matter . | . . . . Retrieved Components 5 | . 5 . . Parts Scanalyzed . | . . . . Part Schematics Acquired . | . . . . Parts Damaged . | . . . . Bothacking | -11 -10 -9 -8 ------------ Run | Yrd Mat Mat Mat Used RIF Installer . | . . . . Robots Hacked . | . . . . Non-combat . | . . . . Combat . | . . . . Robot Hacks Applied . | . . . . Relay Couplers Released . | . . . . Fabnet Peak Effective % . | . . . . Robots Rewired . | . . . . Allies Hacked . | . . . . Hacks Repelled . | . . . . Allies | -11 -10 -9 -8 -------- Run | Yrd Mat Mat Mat Total Allies . | . . . . Largest Group . | . . . . Highest-Rated Group . | . . . . Highest-Rated Ally . | . . . . Total Orders . | . . . . Ally Attacks . | . . . . Total Damage . | . . . . Kills . | . . . . Allies Corrupted . | . . . . Allies Melted . | . . . . Intel | -11 -10 -9 -8 ------- Run | Yrd Mat Mat Mat Robot Analysis Total . | . . . . Derelict Logs Recovered . | . . . . Drone Launches . | . . . . Drone Recoveries . | . . . . Exploration | -11 -10 -9 -8 ------------- Run | Yrd Mat Mat Mat Turns Passed 3163 | 112 1312 1048 691 Spaces Moved 1634 | 62 715 564 293 Core 14 | 14 . . . Treads 876 | 48 715 113 . Legs 635 | . . 451 184 Wheels 109 | . . . 109 Hover . | . . . . Flight . | . . . . Fastest Speed 50 | 50 160 120 86 Average Speed 148 | 140 160 128 162 Slowest Speed 190 | 160 160 190 190 Overloaded Moves . | . . . . Propulsion Burnouts . | . . . . Robots Hopped . | . . . . Cave-ins Triggered . | . . . . Exploration Rate (%) 46 | 5 96 55 30 Regions Visited 3 Branch Regions . Pre-discovered Areas . | . . . . Known Exits Taken 2 | . 1 1 . Unknown Exits Taken 1 | 1 . . . Scrap Searched . | . . . . Spaces Dug 3 | . . . 3 Terrain Destroyed 3 | . . . 3 Melee 3 | . . . 3 Projectile . | . . . . AOE . | . . . . Terrain Rammed . | . . . . Walls Destroyed . | . . . . Machines Disabled . | . . . . Actions | -11 -10 -9 -8 --------- Run | Yrd Mat Mat Mat Total 2087 | 84 818 763 422 Wait 186 | 12 44 89 41 Move 1631 | 61 714 563 293 Hop . | . . . . Pick Up 39 | 5 13 14 7 Fast Attach 18 | 6 2 5 5 Attach 24 | . . 7 17 Detach 2 | . . . 2 Swap 9 | . 4 4 1 Drop 27 | . 8 14 5 Fire 131 | . 33 66 32 Melee 19 | . . . 19 Ram . | . . . . Kick . | . . . . Crush 1 | . . 1 . Escape Stasis . | . . . . Rewire . | . . . . Trap . | . . . . Miscellaneous . | . . . . Route ------- -11/Scrapyard -10/Materials (discovered 4 exits: *Mat x3 / [*Min]) -9/Materials (discovered 4 exits: *Mat x3 / [*Min]) -8/Materials History --------- Turn | Location | Event 10 | -11/Scrapyard | Discovered new exit (range 16) 113 | -11/Scrapyard | Entered Materials 125 | -10/Materials | Identified exit to Materials 308 | -10/Materials | Build established: Mutant 1295 | -10/Materials | Discovered new exit (range 6) 1425 | -10/Materials | Entered another Materials area 1425 | -9/Materials | Evolved 2 slots: Propulsion x2 1510 | -9/Materials | Repaired Sensor Array 1800 | -9/Materials | Destroyed 8 combat bots 1951 | -9/Materials | Discovered new exit (range 11) 2078 | -9/Materials | Build established: Scavenger-Mutant 2212 | -9/Materials | Discovered new exit (range 14) 2260 | -9/Materials | Identified exit to Materials 2473 | -9/Materials | Entered another Materials area 2473 | -8/Materials | Evolved 2 slots: Utility x2 2700 | -8/Materials | Lost 3 parts (1n2u) 2998 | -8/Materials | Lost 4 parts (3n1w) 3025 | -8/Materials | Garrison activated, responded to threat 3090 | -8/Materials | Core integrity fell below 50% 3161 | -8/Materials | Core integrity fell below 20% 3164 | -8/Materials | Destroyed by G-47 Trooper with Particle Gun Last Messages --------------- 03132_ L-31 Rogue destroyed. 03140_ Hcp. Matter Pod destroyed. 03140_ System corrupted by crushing effect (+4). 03142_ B-36 Bruiser suffers critical hit (Smash). 03142_ B-36 Bruiser destroyed. 03142_ Critical hit (Burn: +37). 03144_ System corrupted: Component data lost. 03145_ The unstable cave ceiling collapses. 03146_ Wheel destroyed. 03148_ Lgt. Treads destroyed. 03149_ Acquired Hpw. Shotgun. 03152_ Com. Wheel destroyed. 03152_ Acquired Hpw. Shotgun. 03152_ Wheel destroyed. 03152_ Lgt. Armor Plating destroyed. 03155_ Imp. Ion Engine destroyed. 03158_ Hpw. Shotgun destroyed. 03158_ Imp. Terrain Scanner destroyed. 03163_ G-47 Trooper destroyed. Map ----- +----------------------------------------------------+ | ?????????????????????????????????????????? | | ?????????????????????????????????????????? | | ?????????????????????????????????????????? | | ?????????????????????????????????????????? | | ?????????????????????????????????????????? | | ?????????????????????????????????????????? | | ?????????????????????????????????????????? | | ?????????????????????????????????????????? | | ?????????????????????????????????????????? | | ?????????????????????????????????????????? | | ?????????????????????????????????????????? | | ?????????????????????????????????????????? | | ????????????????????????????????#????????? | | ???????????????????? ???????#????#???????? | | ??????????????? ???????#????????#???????? | | ?????????????? ??????????????????????????? | | ??????????????? ???????????????#????#????? | | ????????????????a##???????????????????#??? | | ????????????????? ?????? ??????????????? | | ?????? ??????????? ?????????????????#?## | | ???????????????????" !????????#??????????? | | ???????????????????? ########???????#???? | | ????????????"???????? ; ] #???????????? | | ??????????????????????# #????????#??? | | ???????????????? ?????# !![ #???????#???? | | ??????????????????????# !@ #?????#?????? | | ????? ??????#?????????# ! Y###?????#??#? | | ???#???????????? ?????# g[gY%*##???#????? | | ???????????????? ?????####/#############?? | | ?????????????????????????#g#?# [ #?? | | ####????????????#######??# #?# #?? | | ############## #### ### #?? | | # ! #?? | | T / #?? | | # """ """ #?? | | ############## ######## """ """ #?? | | ########??????## ###????## """ """ #?? | | # #???????# #???????##########??? | | * # #???????# ##??????????????????? | | / #???????+ #???????????????????? | | !=# ! %##??????# #????????#??????????? | | # ##??????# #???????????????????? | | #? #???????# ##??????????????????? | | !=#?######???????# #?? ????#???????????? | | |%#??????????????# #???? ????#?????????? | | !=#??????????????# #???????????????????? | | #??????????????# #??????????#????????? | | #??????????????# #???????????????????? | | #???############ #?#####?????????????? | | #?#?# ## ### #?????????????? | +----------------------------------------------------+ Best States ------------- Heat Dissipation 53 Energy Generation 12 Energy Capacity 265 Matter Stores 481 Matter Capacity 500 Sight Range 16 Robot Scan Range 14 Terrain Scan Range 16 Terrain Scan Density 85 Armor Coverage 150 Evasion (%) 55 Targeting Accuracy 8 Recoil Reduction 4 Item Schematics ----------------- None Robot Schematics ------------------ None Fabricated ------------ Nothing Alien Tech Used ----------------- None Achievements -------------- Use The Force Challenges ------------ None Game ------ Seed ExoskeletonHeartPendant Manual? 0 Play Time 00:35:53 Cumulative 13.7 hours Start 2024.04.05 @ 21:55:02 End 2024.04.05 @ 22:32:36 Sessions 1 Manual Loads 0 Difficulty Rogue Special Mode None Game No. 16 Rogue 16 Adventurer 0 Explorer 0 Win Type - Total 0 Types 0/0/0/0/0/0/0/0/0 Lore% 6 Gallery% 21 Achievement% 19 Wizard Run 0 Options --------- Layout 1 ASCII 0 Keyboard 0 Movement Numpad Keybinds 0 Fullscreen 1 Font 24/Crisp Map View 50x35 Zoom Use 0% Tactical HUD 1 Map Filters NONE Filters NONE Steam 1 RUN: 3e4fd840-32b4-4925-8124-46fbc4cea2ad